[Event "Early-Titled-Tuesday-Blitz-March-26-2024"]
[Site "Chess.com"]
[Date "2024.03.26"]
[Round "10"]
[White "FlemingA"]
[Black "yaguigor"]
[Result "0-1"]
[WhiteElo "2449"]
[BlackElo "2585"]
[TimeControl "180+1"]
[EndTime "9:53:29 PDT"]
[Termination "yaguigor won on time"]

1. e4 {[%clk 0:03:00.9]} 1... c5 {[%clk 0:02:58.9]} 2. Nf3 {[%clk 0:03:01]} 2...
e6 {[%clk 0:02:56.9]} 3. Qe2 {[%clk 0:03:00.5]} 3... Nc6 {[%clk 0:02:54.3]} 4.
c3 {[%clk 0:03:00.6]} 4... e5 {[%clk 0:02:45.3]} 5. Na3 {[%clk 0:02:59.3]} 5...
g6 {[%clk 0:02:44.5]} 6. Nc4 {[%clk 0:02:57]} 6... d6 {[%clk 0:02:43.7]} 7. g3
{[%clk 0:02:55.2]} 7... Bg7 {[%clk 0:02:43.2]} 8. Qd3 {[%clk 0:02:55.2]} 8...
Ke7 {[%clk 0:02:32.9]} 9. Bg2 {[%clk 0:02:50]} 9... f5 {[%clk 0:02:27.9]} 10.
Ne3 {[%clk 0:02:39.8]} 10... fxe4 {[%clk 0:02:25.5]} 11. Nd5+ {[%clk 0:02:31.3]}
11... Kf8 {[%clk 0:02:22.5]} 12. Qxe4 {[%clk 0:02:30.9]} 12... Nf6 {[%clk
0:02:21.5]} 13. Nxf6 {[%clk 0:02:29.7]} 13... Qxf6 {[%clk 0:02:20.8]} 14. O-O
{[%clk 0:02:28.7]} 14... Bf5 {[%clk 0:02:20.1]} 15. Qa4 {[%clk 0:02:25.4]} 15...
h6 {[%clk 0:02:08.2]} 16. Re1 {[%clk 0:01:59.4]} 16... g5 {[%clk 0:02:02.9]} 17.
d4 {[%clk 0:01:44.9]} 17... cxd4 {[%clk 0:01:59.3]} 18. cxd4 {[%clk 0:01:45.8]}
18... e4 {[%clk 0:01:56.5]} 19. Nd2 {[%clk 0:01:42.5]} 19... Qxd4 {[%clk
0:01:46.7]} 20. Qa3 {[%clk 0:01:34]} 20... Re8 {[%clk 0:01:41.5]} 21. Nb3 {[%clk
0:01:23.5]} 21... Qb4 {[%clk 0:01:38.9]} 22. Qxb4 {[%clk 0:01:12.6]} 22... Nxb4
{[%clk 0:01:39.8]} 23. Rd1 {[%clk 0:01:13.5]} 23... Nd3 {[%clk 0:01:13.9]} 24.
Be3 {[%clk 0:00:58.6]} 24... b6 {[%clk 0:01:03.5]} 25. Nd4 {[%clk 0:00:55.6]}
25... Bg6 {[%clk 0:00:59.2]} 26. Rd2 {[%clk 0:00:50.6]} 26... Kf7 {[%clk
0:00:57.9]} 27. Nb5 {[%clk 0:00:46.9]} 27... Be5 {[%clk 0:00:54.7]} 28. Nxa7
{[%clk 0:00:43.9]} 28... d5 {[%clk 0:00:47.3]} 29. Nc6 {[%clk 0:00:31.1]} 29...
Bf6 {[%clk 0:00:38.7]} 30. Rb1 {[%clk 0:00:21.1]} 30... Rc8 {[%clk 0:00:35.3]}
31. Nd4 {[%clk 0:00:20]} 31... Rc4 {[%clk 0:00:33.1]} 32. b3 {[%clk 0:00:05.3]}
32... Rcc8 {[%clk 0:00:28.3]} 33. Rbd1 {[%clk 0:00:02.9]} 33... Rhd8 {[%clk
0:00:25.8]} 34. Nb5 {[%clk 0:00:02.7]} 34... d4 {[%clk 0:00:23.3]} 35. Bxd4
{[%clk 0:00:02.5]} 35... Bxd4 {[%clk 0:00:22.8]} 36. Nxd4 {[%clk 0:00:02.5]}
36... Rxd4 {[%clk 0:00:22.4]} 37. f3 {[%clk 0:00:03.2]} 37... e3 {[%clk
0:00:21.1]} 38. Re2 {[%clk 0:00:02.8]} 38... Rc1 {[%clk 0:00:17.6]} 39. Rxc1
{[%clk 0:00:01.6]} 39... Nxc1 {[%clk 0:00:18.1]} 40. Rxe3 {[%clk 0:00:02.5]}
40... Rd1+ {[%clk 0:00:17.8]} 41. Kf2 {[%clk 0:00:01.9]} 41... Rd2+ {[%clk
0:00:18.7]} 42. Kg1 {[%clk 0:00:01.9]} 42... Rxa2 {[%clk 0:00:17.7]} 43. Rc3
{[%clk 0:00:01.3]} 43... Ne2+ {[%clk 0:00:16.7]} 0-1

[Event "Early-Titled-Tuesday-Blitz-March-26-2024"]
[Site "Chess.com"]
[Date "2024.03.26"]
[Round "10"]
[White "LeninGuerra"]
[Black "mary-sanna"]
[Result "1-0"]
[WhiteElo "2671"]
[BlackElo "2219"]
[TimeControl "180+1"]
[EndTime "9:53:29 PDT"]
[Termination "LeninGuerra won on time"]

1. e4 {[%clk 0:02:58.8]} 1... c5 {[%clk 0:02:59.6]} 2. Nf3 {[%clk 0:02:57.7]}
2... Nc6 {[%clk 0:02:59.5]} 3. d4 {[%clk 0:02:56]} 3... cxd4 {[%clk 0:03:00.4]}
4. Nxd4 {[%clk 0:02:56.8]} 4... g6 {[%clk 0:03:00.9]} 5. Nc3 {[%clk 0:02:55]}
5... Bg7 {[%clk 0:03:00.4]} 6. Nb3 {[%clk 0:02:55.9]} 6... Nf6 {[%clk
0:02:56.5]} 7. Be2 {[%clk 0:02:55.3]} 7... O-O {[%clk 0:02:55.9]} 8. O-O {[%clk
0:02:56.2]} 8... a6 {[%clk 0:02:50.2]} 9. a4 {[%clk 0:02:43.1]} 9... b6 {[%clk
0:02:47.1]} 10. f4 {[%clk 0:02:31.6]} 10... d6 {[%clk 0:02:44]} 11. Bf3 {[%clk
0:02:31.9]} 11... Bb7 {[%clk 0:02:44]} 12. Be3 {[%clk 0:02:31.8]} 12... Qc7
{[%clk 0:02:37.1]} 13. Kh1 {[%clk 0:02:30.5]} 13... Nb4 {[%clk 0:02:34.8]} 14.
Qd2 {[%clk 0:01:56.7]} 14... Rfd8 {[%clk 0:02:25.9]} 15. Qf2 {[%clk 0:01:56.1]}
15... Nd7 {[%clk 0:02:19.3]} 16. Rad1 {[%clk 0:01:55.3]} 16... Bxc3 {[%clk
0:01:47.5]} 17. bxc3 {[%clk 0:01:56.2]} 17... Qxc3 {[%clk 0:01:47.7]} 18. Rd2
{[%clk 0:01:45.5]} 18... b5 {[%clk 0:01:27.7]} 19. Bd4 {[%clk 0:01:40.8]} 19...
Qc7 {[%clk 0:01:21.1]} 20. a5 {[%clk 0:01:39.5]} 20... e5 {[%clk 0:01:19.3]} 21.
Bb2 {[%clk 0:01:32.6]} 21... Rac8 {[%clk 0:01:15.3]} 22. Rfd1 {[%clk 0:00:52.2]}
22... Nf8 {[%clk 0:00:47.1]} 23. fxe5 {[%clk 0:00:39.5]} 23... dxe5 {[%clk
0:00:33.8]} 24. Rxd8 {[%clk 0:00:40.4]} 24... Rxd8 {[%clk 0:00:32.5]} 25. Rxd8
{[%clk 0:00:41]} 25... Qxd8 {[%clk 0:00:33.4]} 26. Bxe5 {[%clk 0:00:41.2]} 26...
Qg5 {[%clk 0:00:12.2]} 27. Bc3 {[%clk 0:00:23.1]} 27... Nc6 {[%clk 0:00:10.4]}
28. h4 {[%clk 0:00:22.3]} 28... Qe7 {[%clk 0:00:08.7]} 29. Nc5 {[%clk
0:00:20.3]} 29... Bc8 {[%clk 0:00:06.3]} 30. e5 {[%clk 0:00:20.2]} 30... Nxe5
{[%clk 0:00:05.9]} 31. Ne4 {[%clk 0:00:17.4]} 31... Nfd7 {[%clk 0:00:04.1]} 32.
h5 {[%clk 0:00:13.5]} 32... f6 {[%clk 0:00:02]} 33. hxg6 {[%clk 0:00:13.4]}
33... hxg6 {[%clk 0:00:02.9]} 34. Be2 {[%clk 0:00:13.3]} 34... Kg7 {[%clk
0:00:03]} 35. Qg3 {[%clk 0:00:13.2]} 35... Nc5 {[%clk 0:00:01.7]} 36. Nxf6
{[%clk 0:00:11.8]} 36... Kxf6 {[%clk 0:00:01.7]} 37. Qf4+ {[%clk 0:00:12.3]}
37... Kg7 {[%clk 0:00:01.7]} 38. Bxe5+ {[%clk 0:00:12.2]} 38... Kg8 {[%clk
0:00:01.9]} 39. Bf3 {[%clk 0:00:11.6]} 39... Nd7 {[%clk 0:00:01.7]} 40. Bd5+
{[%clk 0:00:11.6]} 40... Kh7 {[%clk 0:00:01.2]} 41. Qh2+ {[%clk 0:00:11.5]} 1-0

[Event "Early-Titled-Tuesday-Blitz-March-26-2024"]
[Site "Chess.com"]
[Date "2024.03.26"]
[Round "10"]
[White "Iball95"]
[Black "RandomNoob04"]
[Result "1-0"]
[WhiteElo "2882"]
[BlackElo "2670"]
[TimeControl "180+1"]
[EndTime "9:53:33 PDT"]
[Termination "Iball95 won by resignation"]

1. e4 {[%clk 0:02:59.8]} 1... d5 {[%clk 0:03:00.5]} 2. exd5 {[%clk 0:03:00.7]}
2... Qxd5 {[%clk 0:03:01.4]} 3. Nc3 {[%clk 0:03:01.3]} 3... Qa5 {[%clk
0:03:02.1]} 4. d4 {[%clk 0:03:02]} 4... Nf6 {[%clk 0:03:02.8]} 5. Nf3 {[%clk
0:03:01.1]} 5... Bf5 {[%clk 0:03:03.4]} 6. Bc4 {[%clk 0:02:55.6]} 6... e6 {[%clk
0:03:03.5]} 7. Ne5 {[%clk 0:02:55.3]} 7... Nbd7 {[%clk 0:02:50.7]} 8. Nxd7
{[%clk 0:02:55.5]} 8... Nxd7 {[%clk 0:02:51.6]} 9. O-O {[%clk 0:02:55.7]} 9...
c6 {[%clk 0:02:47]} 10. Re1 {[%clk 0:02:55.7]} 10... Bb4 {[%clk 0:02:41.2]} 11.
Bd2 {[%clk 0:02:55.7]} 11... O-O {[%clk 0:02:40.8]} 12. a3 {[%clk 0:02:55]}
12... Bxc3 {[%clk 0:02:40.6]} 13. Bxc3 {[%clk 0:02:55.9]} 13... Qc7 {[%clk
0:02:35.2]} 14. h3 {[%clk 0:02:54.1]} 14... Rad8 {[%clk 0:02:30.9]} 15. Qe2
{[%clk 0:02:51.8]} 15... Nb6 {[%clk 0:02:27.2]} 16. Bb3 {[%clk 0:02:51.6]} 16...
Nd5 {[%clk 0:02:25.2]} 17. Bd2 {[%clk 0:02:52]} 17... b5 {[%clk 0:02:14.1]} 18.
c3 {[%clk 0:02:50.7]} 18... Rfe8 {[%clk 0:02:08.5]} 19. Qf3 {[%clk 0:02:50.9]}
19... Bg6 {[%clk 0:02:05.1]} 20. h4 {[%clk 0:02:51.1]} 20... h6 {[%clk
0:02:00.3]} 21. Re5 {[%clk 0:02:50.4]} 21... Nb6 {[%clk 0:01:46.5]} 22. Rae1
{[%clk 0:02:47.5]} 22... Nd7 {[%clk 0:01:46.1]} 23. R5e2 {[%clk 0:02:44.2]}
23... Nf6 {[%clk 0:01:41.8]} 24. Re5 {[%clk 0:02:43.9]} 24... Nd7 {[%clk
0:01:41.3]} 25. R5e2 {[%clk 0:02:43.3]} 25... Nf6 {[%clk 0:01:41.9]} 26. Bf4
{[%clk 0:02:43.8]} 26... Qc8 {[%clk 0:01:37.8]} 27. Re5 {[%clk 0:02:41.7]} 27...
Nd7 {[%clk 0:01:37.5]} 28. R5e2 {[%clk 0:02:34]} 28... Nf6 {[%clk 0:01:38]} 29.
Qh3 {[%clk 0:02:33.1]} 29... Bf5 {[%clk 0:01:30.7]} 30. Qh2 {[%clk 0:02:28.9]}
30... c5 {[%clk 0:01:25.5]} 31. dxc5 {[%clk 0:02:25.6]} 31... Qxc5 {[%clk
0:01:26.4]} 32. Be3 {[%clk 0:02:25.9]} 32... Qc6 {[%clk 0:01:24.7]} 33. Bxa7
{[%clk 0:02:22.3]} 33... Ne4 {[%clk 0:00:44.2]} 34. Qe5 {[%clk 0:02:02.5]} 34...
Nd2 {[%clk 0:00:39.4]} 35. Bd4 {[%clk 0:01:58.1]} 35... Rxd4 {[%clk 0:00:37.7]}
36. cxd4 {[%clk 0:01:43.8]} 36... Nxb3 {[%clk 0:00:37.8]} 37. d5 {[%clk
0:01:43.4]} 37... Qd7 {[%clk 0:00:30]} 38. dxe6 {[%clk 0:01:37.9]} 38... Bxe6
{[%clk 0:00:29.4]} 39. Re3 {[%clk 0:01:32.9]} 39... Nd4 {[%clk 0:00:27]} 40. Rd3
{[%clk 0:01:32.7]} 40... Nc6 {[%clk 0:00:21.2]} 41. Qxb5 {[%clk 0:01:24.8]}
41... Nd4 {[%clk 0:00:05.8]} 42. Qe5 {[%clk 0:01:21.4]} 42... Nc6 {[%clk
0:00:04.2]} 43. Qb5 {[%clk 0:01:13.8]} 43... Qc8 {[%clk 0:00:02.4]} 44. Rc3
{[%clk 0:01:08.5]} 44... Bd7 {[%clk 0:00:02.8]} 45. Rec1 {[%clk 0:01:08.6]}
45... Re6 {[%clk 0:00:02.5]} 46. b4 {[%clk 0:01:08.4]} 46... Qe8 {[%clk
0:00:02.1]} 47. Qb7 {[%clk 0:01:05.1]} 47... Re1+ {[%clk 0:00:02.3]} 48. Kh2
{[%clk 0:01:04]} 48... Qe5+ {[%clk 0:00:03]} 49. g3 {[%clk 0:01:04.4]} 49...
Rxc1 {[%clk 0:00:03.2]} 50. Rxc1 {[%clk 0:01:05.3]} 50... Be8 {[%clk 0:00:02.9]}
51. Rxc6 {[%clk 0:01:04.6]} 51... Bxc6 {[%clk 0:00:02.1]} 52. Qxc6 {[%clk
0:01:05.5]} 52... Qb2 {[%clk 0:00:02.9]} 53. Qa8+ {[%clk 0:01:03.3]} 53... Kh7
{[%clk 0:00:03]} 54. Qf3 {[%clk 0:01:04.2]} 54... f6 {[%clk 0:00:02.1]} 55. Kg2
{[%clk 0:01:04.2]} 55... g6 {[%clk 0:00:02.5]} 56. Qb7+ {[%clk 0:01:03.8]} 56...
Kg8 {[%clk 0:00:03]} 57. a4 {[%clk 0:01:04.5]} 57... h5 {[%clk 0:00:02.7]} 58.
a5 {[%clk 0:01:04.9]} 58... g5 {[%clk 0:00:03.4]} 59. hxg5 {[%clk 0:01:05.1]}
59... fxg5 {[%clk 0:00:04.3]} 60. a6 {[%clk 0:01:05.7]} 60... h4 {[%clk
0:00:05]} 61. a7 {[%clk 0:01:05.3]} 61... h3+ {[%clk 0:00:05.6]} 62. Kxh3 {[%clk
0:01:05.6]} 62... g4+ {[%clk 0:00:06.2]} 63. Kg2 {[%clk 0:01:05.5]} 1-0

[Event "Early-Titled-Tuesday-Blitz-March-26-2024"]
[Site "Chess.com"]
[Date "2024.03.26"]
[Round "10"]
[White "sokidze"]
[Black "DrVelja"]
[Result "0-1"]
[WhiteElo "2791"]
[BlackElo "2996"]
[TimeControl "180+1"]
[EndTime "9:53:35 PDT"]
[Termination "DrVelja won by resignation"]

1. d4 {[%clk 0:03:00.9]} 1... Nf6 {[%clk 0:02:56.4]} 2. g3 {[%clk 0:03:00.6]}
2... g6 {[%clk 0:02:55.4]} 3. Bg2 {[%clk 0:03:00.8]} 3... Bg7 {[%clk 0:02:55.6]}
4. e4 {[%clk 0:03:01]} 4... d6 {[%clk 0:02:55]} 5. Nc3 {[%clk 0:03:01.2]} 5...
O-O {[%clk 0:02:55.6]} 6. Nge2 {[%clk 0:03:01.9]} 6... Nbd7 {[%clk 0:02:55.4]}
7. O-O {[%clk 0:03:01.9]} 7... e5 {[%clk 0:02:56.2]} 8. h3 {[%clk 0:02:59.6]}
8... exd4 {[%clk 0:02:54.2]} 9. Nxd4 {[%clk 0:03:00.5]} 9... Re8 {[%clk
0:02:55]} 10. a4 {[%clk 0:03:00.5]} 10... Nc5 {[%clk 0:02:55]} 11. Re1 {[%clk
0:03:01.1]} 11... c6 {[%clk 0:02:55]} 12. a5 {[%clk 0:02:48]} 12... Qc7 {[%clk
0:02:52.9]} 13. Bf4 {[%clk 0:02:14.1]} 13... Nh5 {[%clk 0:02:51.8]} 14. Be3
{[%clk 0:02:14.1]} 14... Bd7 {[%clk 0:02:52]} 15. g4 {[%clk 0:02:10.7]} 15...
Nf6 {[%clk 0:02:51.9]} 16. f3 {[%clk 0:02:07.6]} 16... d5 {[%clk 0:01:42.2]} 17.
b4 {[%clk 0:01:20.9]} 17... Na6 {[%clk 0:01:27.2]} 18. Rb1 {[%clk 0:00:47.4]}
18... dxe4 {[%clk 0:01:23.7]} 19. Nxe4 {[%clk 0:00:44]} 19... Nxe4 {[%clk
0:01:21.1]} 20. fxe4 {[%clk 0:00:44.9]} 20... Rad8 {[%clk 0:01:20.2]} 21. Qf3
{[%clk 0:00:35.3]} 21... Bxg4 {[%clk 0:01:16.1]} 22. hxg4 {[%clk 0:00:27.4]}
22... Bxd4 {[%clk 0:01:14.8]} 23. Bxd4 {[%clk 0:00:28]} 23... Rxd4 {[%clk
0:01:15.7]} 24. c3 {[%clk 0:00:28.7]} 24... Rd2 {[%clk 0:01:13.3]} 25. Qe3
{[%clk 0:00:25.7]} 25... Red8 {[%clk 0:01:07.2]} 26. e5 {[%clk 0:00:25.7]} 26...
Qe7 {[%clk 0:01:01]} 27. e6 {[%clk 0:00:19.3]} 27... Nc7 {[%clk 0:00:45.7]} 28.
exf7+ {[%clk 0:00:17.6]} 28... Qxf7 {[%clk 0:00:46.6]} 29. Rf1 {[%clk
0:00:10.6]} 29... Qa2 {[%clk 0:00:47.3]} 30. Qf3 {[%clk 0:00:09.7]} 30... Nd5
{[%clk 0:00:24.4]} 31. Ra1 {[%clk 0:00:05.6]} 31... Rxg2+ {[%clk 0:00:22]} 32.
Qxg2 {[%clk 0:00:05]} 32... Qxg2+ {[%clk 0:00:22.9]} 33. Kxg2 {[%clk 0:00:05.9]}
33... Ne3+ {[%clk 0:00:23.8]} 34. Kg1 {[%clk 0:00:03.2]} 34... Nxf1 {[%clk
0:00:24.7]} 35. Rxf1 {[%clk 0:00:03.5]} 35... Rd3 {[%clk 0:00:24.4]} 36. Rc1
{[%clk 0:00:01.9]} 36... Rg3+ {[%clk 0:00:23.9]} 37. Kf2 {[%clk 0:00:02.4]}
37... Rxg4 {[%clk 0:00:24.8]} 38. Rd1 {[%clk 0:00:03.3]} 38... Rf4+ {[%clk
0:00:23.3]} 39. Ke3 {[%clk 0:00:03.1]} 39... Rf7 {[%clk 0:00:23.7]} 40. Rd6
{[%clk 0:00:02.4]} 40... a6 {[%clk 0:00:23.3]} 41. c4 {[%clk 0:00:01.8]} 41...
Kg7 {[%clk 0:00:23.9]} 42. b5 {[%clk 0:00:01.3]} 42... cxb5 {[%clk 0:00:23.8]}
43. cxb5 {[%clk 0:00:02.2]} 43... axb5 {[%clk 0:00:24.7]} 44. Rb6 {[%clk
0:00:03.1]} 44... h5 {[%clk 0:00:25.3]} 45. Rxb5 {[%clk 0:00:03.7]} 45... Kh6
{[%clk 0:00:24.9]} 0-1

[Event "Early-Titled-Tuesday-Blitz-March-26-2024"]
[Site "Chess.com"]
[Date "2024.03.26"]
[Round "10"]
[White "Misterfox120"]
[Black "Knightmare1014"]
[Result "1-0"]
[WhiteElo "2474"]
[BlackElo "2335"]
[TimeControl "180+1"]
[EndTime "9:53:35 PDT"]
[Termination "Misterfox120 won on time"]

1. d4 {[%clk 0:03:00.9]} 1... d5 {[%clk 0:02:59.7]} 2. Nc3 {[%clk 0:03:00.6]}
2... Nf6 {[%clk 0:02:59.5]} 3. Bf4 {[%clk 0:03:00.2]} 3... a6 {[%clk 0:03:00.1]}
4. e3 {[%clk 0:02:59.3]} 4... c5 {[%clk 0:03:00.4]} 5. dxc5 {[%clk 0:02:56.3]}
5... Nc6 {[%clk 0:02:59.5]} 6. a3 {[%clk 0:02:50.5]} 6... e5 {[%clk 0:02:58.5]}
7. Bg5 {[%clk 0:02:49.4]} 7... d4 {[%clk 0:02:49.4]} 8. Ne4 {[%clk 0:02:46.8]}
8... Be7 {[%clk 0:02:45.6]} 9. Bxf6 {[%clk 0:02:34.2]} 9... gxf6 {[%clk
0:02:45.1]} 10. b4 {[%clk 0:02:32.3]} 10... f5 {[%clk 0:02:42.8]} 11. Ng3 {[%clk
0:02:24.7]} 11... Be6 {[%clk 0:02:40.3]} 12. exd4 {[%clk 0:02:10.5]} 12... Nxd4
{[%clk 0:02:36]} 13. Nf3 {[%clk 0:02:02.7]} 13... Nxf3+ {[%clk 0:02:07.2]} 14.
Qxf3 {[%clk 0:02:03.6]} 14... Qc8 {[%clk 0:01:53.8]} 15. Rd1 {[%clk 0:01:50.1]}
15... O-O {[%clk 0:01:51.7]} 16. Be2 {[%clk 0:01:27.5]} 16... a5 {[%clk
0:01:39.1]} 17. O-O {[%clk 0:01:23.2]} 17... axb4 {[%clk 0:01:38.6]} 18. axb4
{[%clk 0:01:24.1]} 18... Qc6 {[%clk 0:01:34.9]} 19. Qh5 {[%clk 0:00:48.3]} 19...
f4 {[%clk 0:00:49.1]} 20. Nf5 {[%clk 0:00:36.7]} 20... Bxf5 {[%clk 0:00:49.2]}
21. Qxf5 {[%clk 0:00:37.5]} 21... Qf6 {[%clk 0:00:42.4]} 22. Qe4 {[%clk
0:00:28.1]} 22... Qg5 {[%clk 0:00:38.7]} 23. Bd3 {[%clk 0:00:23.1]} 23... Qg7
{[%clk 0:00:24.1]} 24. Qxb7 {[%clk 0:00:21.5]} 24... f5 {[%clk 0:00:19.1]} 25.
Bc4+ {[%clk 0:00:18.2]} 25... Kh8 {[%clk 0:00:19.3]} 26. Rd7 {[%clk 0:00:16.9]}
26... Rae8 {[%clk 0:00:19.1]} 27. Rfd1 {[%clk 0:00:11.2]} 27... e4 {[%clk
0:00:17.7]} 28. f3 {[%clk 0:00:07]} 28... e3 {[%clk 0:00:14.6]} 29. Qd5 {[%clk
0:00:05.3]} 29... Qf6 {[%clk 0:00:11.5]} 30. b5 {[%clk 0:00:05.1]} 30... Rg8
{[%clk 0:00:09.8]} 31. c6 {[%clk 0:00:04.9]} 31... Qg6 {[%clk 0:00:08.8]} 32. g3
{[%clk 0:00:02.5]} 32... fxg3 {[%clk 0:00:08.3]} 33. h3 {[%clk 0:00:02.9]} 33...
g2 {[%clk 0:00:07.2]} 34. Rxe7 {[%clk 0:00:03]} 34... Rxe7 {[%clk 0:00:05.9]}
35. Qxg8+ {[%clk 0:00:03.4]} 35... Qxg8 {[%clk 0:00:06.2]} 36. Bxg8 {[%clk
0:00:04.3]} 36... Kxg8 {[%clk 0:00:06.6]} 37. b6 {[%clk 0:00:04.6]} 37... e2
{[%clk 0:00:05.8]} 38. Re1 {[%clk 0:00:04.9]} 38... Kf8 {[%clk 0:00:02.5]} 39.
b7 {[%clk 0:00:05.3]} 39... Re8 {[%clk 0:00:02.6]} 40. c7 {[%clk 0:00:05.6]}
40... Kf7 {[%clk 0:00:02.9]} 41. c8=Q {[%clk 0:00:05.9]} 1-0

[Event "Early-Titled-Tuesday-Blitz-March-26-2024"]
[Site "Chess.com"]
[Date "2024.03.26"]
[Round "10"]
[White "KevinGeorgeMicheal"]
[Black "biveklama"]
[Result "1/2-1/2"]
[WhiteElo "2448"]
[BlackElo "2576"]
[TimeControl "180+1"]
[EndTime "9:53:37 PDT"]
[Termination "Game drawn - insufficient material"]

1. Nf3 {[%clk 0:03:00.9]} 1... Nf6 {[%clk 0:02:59.4]} 2. g3 {[%clk 0:03:00.8]}
2... d5 {[%clk 0:02:59.1]} 3. Bg2 {[%clk 0:03:00.8]} 3... Bg4 {[%clk 0:02:58.2]}
4. O-O {[%clk 0:03:00.7]} 4... Bxf3 {[%clk 0:02:58]} 5. Bxf3 {[%clk 0:03:00.8]}
5... e6 {[%clk 0:02:57.3]} 6. d3 {[%clk 0:03:01.3]} 6... Nbd7 {[%clk 0:02:56.8]}
7. Nd2 {[%clk 0:03:01.9]} 7... c6 {[%clk 0:02:57.2]} 8. e4 {[%clk 0:03:02.4]}
8... Be7 {[%clk 0:02:56.7]} 9. Re1 {[%clk 0:03:02.3]} 9... O-O {[%clk
0:02:56.8]} 10. Bg2 {[%clk 0:02:59.1]} 10... dxe4 {[%clk 0:02:55.1]} 11. Nxe4
{[%clk 0:02:57.5]} 11... Nxe4 {[%clk 0:02:55]} 12. Bxe4 {[%clk 0:02:58.2]} 12...
Bf6 {[%clk 0:02:50.5]} 13. c3 {[%clk 0:02:51.5]} 13... Nc5 {[%clk 0:02:47.9]}
14. Qc2 {[%clk 0:02:51.6]} 14... Nxe4 {[%clk 0:02:47.5]} 15. dxe4 {[%clk
0:02:51.3]} 15... Qa5 {[%clk 0:02:41.1]} 16. Be3 {[%clk 0:02:37.9]} 16... Rfd8
{[%clk 0:02:38.5]} 17. a3 {[%clk 0:02:35.3]} 17... Be7 {[%clk 0:02:14.7]} 18.
Rad1 {[%clk 0:02:33.3]} 18... a6 {[%clk 0:02:13.9]} 19. Kg2 {[%clk 0:02:18.7]}
19... Qc7 {[%clk 0:01:53.4]} 20. Qb3 {[%clk 0:02:16.7]} 20... c5 {[%clk
0:01:46.4]} 21. a4 {[%clk 0:02:10]} 21... Qc6 {[%clk 0:01:45.2]} 22. f3 {[%clk
0:02:08.9]} 22... b5 {[%clk 0:01:43.1]} 23. axb5 {[%clk 0:02:07.7]} 23... axb5
{[%clk 0:01:44]} 24. Bf2 {[%clk 0:02:03.2]} 24... c4 {[%clk 0:01:42]} 25. Qc2
{[%clk 0:02:02.4]} 25... h5 {[%clk 0:01:34]} 26. Rxd8+ {[%clk 0:01:32.7]} 26...
Rxd8 {[%clk 0:01:34.9]} 27. Rd1 {[%clk 0:01:33.4]} 27... Rd7 {[%clk 0:01:33.6]}
28. Rd2 {[%clk 0:01:16.6]} 28... Kf8 {[%clk 0:01:32.9]} 29. Qd1 {[%clk
0:01:15.7]} 29... Ke8 {[%clk 0:01:33.2]} 30. Rxd7 {[%clk 0:01:12.4]} 30... Qxd7
{[%clk 0:01:34.1]} 31. Qxd7+ {[%clk 0:01:13.1]} 31... Kxd7 {[%clk 0:01:34.1]}
32. Kf1 {[%clk 0:01:10.7]} 32... Kc6 {[%clk 0:01:30.4]} 33. Ke2 {[%clk
0:01:10.4]} 33... b4 {[%clk 0:01:30.9]} 34. Bd4 {[%clk 0:01:06]} 34... f6 {[%clk
0:01:25.6]} 35. cxb4 {[%clk 0:01:02.2]} 35... Kb5 {[%clk 0:01:23.3]} 36. Kd1
{[%clk 0:00:58.6]} 36... Bxb4 {[%clk 0:01:15.4]} 37. Kc2 {[%clk 0:00:58.1]}
37... e5 {[%clk 0:01:15.2]} 38. Be3 {[%clk 0:00:54.2]} 38... Bd6 {[%clk
0:01:10.6]} 39. b3 {[%clk 0:00:50.3]} 39... g6 {[%clk 0:01:05.1]} 40. g4 {[%clk
0:00:43.8]} 40... hxg4 {[%clk 0:00:59.3]} 41. fxg4 {[%clk 0:00:43.3]} 41... g5
{[%clk 0:00:59.8]} 42. Bf2 {[%clk 0:00:38.4]} 42... Bc5 {[%clk 0:00:52.6]} 43.
Be1 {[%clk 0:00:35.6]} 43... Be7 {[%clk 0:00:50.2]} 44. h4 {[%clk 0:00:33.9]}
44... gxh4 {[%clk 0:00:49.9]} 45. Bxh4 {[%clk 0:00:32.4]} 45... Kb4 {[%clk
0:00:49.4]} 46. Be1+ {[%clk 0:00:26]} 46... Kc5 {[%clk 0:00:49.7]} 47. Bf2+
{[%clk 0:00:25.2]} 47... Kb5 {[%clk 0:00:50.1]} 48. Bh4 {[%clk 0:00:25.2]} 48...
Bd8 {[%clk 0:00:49.3]} 49. Bg3 {[%clk 0:00:21.8]} 49... Be7 {[%clk 0:00:42.6]}
50. g5 {[%clk 0:00:19.4]} 50... fxg5 {[%clk 0:00:40.9]} 51. Bxe5 {[%clk
0:00:19.7]} 51... Kc5 {[%clk 0:00:36.7]} 52. bxc4 {[%clk 0:00:19.2]} 52... Kxc4
{[%clk 0:00:36.9]} 53. Kd2 {[%clk 0:00:19.8]} 53... g4 {[%clk 0:00:33.3]} 54.
Ke3 {[%clk 0:00:19.5]} 54... Bg5+ {[%clk 0:00:33.3]} 55. Kf2 {[%clk 0:00:19.6]}
55... Kd3 {[%clk 0:00:33.7]} 56. Kg3 {[%clk 0:00:18.8]} 56... Kxe4 {[%clk
0:00:34.1]} 57. Kxg4 {[%clk 0:00:19.3]} 1/2-1/2